[Event "Titled Tuesday Blitz September 28 2021"]
[White "Chernomordik, Pavel"]
[Black "Korchmar, Vasiliy"]
[WhiteFideId "2804530"]
[BlackFideId "24131750"]
[WhiteElo "2256"]
[BlackElo "2370"]
[Result "0-1"]
[Round "07"]
[TimeControl "180+1"]
[Date "2021.09.28"]
[WhiteClock "0:00:04"]
[BlackClock "0:00:25"]

1. e4 {[%clk 0:02:49]}  c5 {[%clk 0:02:44]} 2. Nc3 {[%clk 0:02:48]}  e5 {[%clk 0:02:43]} 3. Bc4 {[%clk 0:02:40]}  g5 {[%clk 0:02:43]} 4. d3 {[%clk 0:02:07]}  Bg7 {[%clk 0:02:41]} 5. Qh5 {[%clk 0:02:00]}  Nh6 {[%clk 0:02:39]} 6. Bxg5 {[%clk 0:01:55]}  Qb6 {[%clk 0:02:39]} 7. O-O-O {[%clk 0:01:39]}  Qg6 {[%clk 0:02:36]} 8. Qh4 {[%clk 0:01:34]}  O-O {[%clk 0:02:35]} 9. Nd5 {[%clk 0:01:32]}  Nc6 {[%clk 0:02:35]} 10. Be7 {[%clk 0:01:16]}  Re8 {[%clk 0:02:34]} 11. Bxc5 {[%clk 0:01:14]}  d6 {[%clk 0:02:35]} 12. Be3 {[%clk 0:01:12]}  Ng4 {[%clk 0:02:34]} 13. Nf3 {[%clk 0:01:06]}  Be6 {[%clk 0:02:31]} 14. h3 {[%clk 0:01:02]}  Nxe3 {[%clk 0:02:32]} 15. Nxe3 {[%clk 0:01:00]}  Rac8 {[%clk 0:02:32]} 16. g4 {[%clk 0:00:57]}  b5 {[%clk 0:02:26]} 17. Bxb5 {[%clk 0:00:48]}  Bxa2 {[%clk 0:02:20]} 18. Nf5 {[%clk 0:00:45]}  Nb4 {[%clk 0:02:16]} 19. c3 {[%clk 0:00:38]}  Re6 {[%clk 0:01:59]} 20. Kd2 {[%clk 0:00:36]}  d5 {[%clk 0:01:52]} 21. cxb4 {[%clk 0:00:29]}  dxe4 {[%clk 0:01:52]} 22. Ng5 {[%clk 0:00:28]}  Bf6 {[%clk 0:01:45]} 23. Qxh7+ {[%clk 0:00:27]}  Qxh7 {[%clk 0:01:44]} 24. Nxh7 {[%clk 0:00:27]}  Kxh7 {[%clk 0:01:43]} 25. Bd7 {[%clk 0:00:26]}  Bg5+ {[%clk 0:01:42]} 26. Ke1 {[%clk 0:00:25]}  Rc2 {[%clk 0:01:33]} 27. Bxe6 {[%clk 0:00:22]}  fxe6 {[%clk 0:01:34]} 28. Ng3 {[%clk 0:00:22]}  e3 {[%clk 0:01:14]} 29. fxe3 {[%clk 0:00:19]}  Bxe3 {[%clk 0:01:15]} 30. Ne4 {[%clk 0:00:19]}  Rxb2 {[%clk 0:01:10]} 31. Rf1 {[%clk 0:00:17]}  Bf4 {[%clk 0:00:53]} 32. g5 {[%clk 0:00:16]}  Bd5 {[%clk 0:00:49]} 33. Rf3 {[%clk 0:00:14]}  Kg6 {[%clk 0:00:44]} 34. h4 {[%clk 0:00:14]}  Kh5 {[%clk 0:00:41]} 35. Nf6+ {[%clk 0:00:14]}  Kxh4 {[%clk 0:00:41]} 36. Nxd5 {[%clk 0:00:14]}  exd5 {[%clk 0:00:40]} 37. g6 {[%clk 0:00:14]}  Rg2 {[%clk 0:00:40]} 38. d4 {[%clk 0:00:13]}  Kg4 {[%clk 0:00:36]} 39. Ra3 {[%clk 0:00:07]}  e4 {[%clk 0:00:34]} 40. g7 {[%clk 0:00:06]}  Kf5 {[%clk 0:00:31]} 41. Rxa7 {[%clk 0:00:06]}  e3 {[%clk 0:00:30]} 42. Kf1 {[%clk 0:00:05]}  e2+ {[%clk 0:00:26]} 43. Kxg2 {[%clk 0:00:05]}  exd1=Q {[%clk 0:00:27]} 44. g8=Q {[%clk 0:00:05]}  Qe2+ {[%clk 0:00:25]} 45. Kh3 {[%clk 0:00:04]}  Qh2# {[%clk 0:00:25]} 0-1


[Site "https://www.chess.com"]

[Event "Titled Tuesday Blitz September 28 2021"]
[White "Dmitrenko, Viktor"]
[Black "Weetik, Vjacheslav"]
[WhiteFideId "14110270"]
[BlackFideId "4153472"]
[WhiteElo "2294"]
[BlackElo "2469"]
[Result "0-1"]
[Round "07"]
[TimeControl "180+1"]
[Date "2021.09.28"]
[WhiteClock "0:00:03"]
[BlackClock "0:00:06"]

1. e4 {[%clk 0:03:00]}  c6 {[%clk 0:02:58]} 2. c4 {[%clk 0:03:00]}  e5 {[%clk 0:02:58]} 3. Nf3 {[%clk 0:02:59]}  d6 {[%clk 0:02:58]} 4. d4 {[%clk 0:02:58]}  Nd7 {[%clk 0:02:58]} 5. Be2 {[%clk 0:02:58]}  Ngf6 {[%clk 0:02:59]} 6. Nc3 {[%clk 0:02:57]}  Be7 {[%clk 0:02:52]} 7. O-O {[%clk 0:02:57]}  O-O {[%clk 0:02:52]} 8. Re1 {[%clk 0:02:49]}  a6 {[%clk 0:02:51]} 9. Rb1 {[%clk 0:02:46]}  b5 {[%clk 0:02:45]} 10. b4 {[%clk 0:02:23]}  Bb7 {[%clk 0:02:39]} 11. a4 {[%clk 0:02:18]}  bxc4 {[%clk 0:02:17]} 12. Bxc4 {[%clk 0:02:07]}  d5 {[%clk 0:01:58]} 13. exd5 {[%clk 0:02:05]}  cxd5 {[%clk 0:01:53]} 14. Bf1 {[%clk 0:01:58]}  e4 {[%clk 0:01:50]} 15. Nh4 {[%clk 0:01:48]}  g6 {[%clk 0:01:39]} 16. a5 {[%clk 0:01:35]}  h5 {[%clk 0:01:16]} 17. g3 {[%clk 0:01:32]}  Ng4 {[%clk 0:01:11]} 18. Ng2 {[%clk 0:01:30]}  f5 {[%clk 0:01:11]} 19. Nf4 {[%clk 0:01:29]}  Ndf6 {[%clk 0:00:53]} 20. Nxg6 {[%clk 0:01:15]}  Rf7 {[%clk 0:00:46]} 21. Na4 {[%clk 0:01:10]}  Rg7 {[%clk 0:00:42]} 22. Nf4 {[%clk 0:01:10]}  Qd6 {[%clk 0:00:30]} 23. Nc5 {[%clk 0:01:05]}  Bc8 {[%clk 0:00:30]} 24. b5 {[%clk 0:00:54]}  axb5 {[%clk 0:00:29]} 25. Rxb5 {[%clk 0:00:53]}  h4 {[%clk 0:00:29]} 26. Rb6 {[%clk 0:00:52]}  hxg3 {[%clk 0:00:22]} 27. fxg3 {[%clk 0:00:45]}  Qd8 {[%clk 0:00:16]} 28. Bd2 {[%clk 0:00:30]}  Qe8 {[%clk 0:00:11]} 29. Qb3 {[%clk 0:00:23]}  Kh7 {[%clk 0:00:10]} 30. a6 {[%clk 0:00:21]}  Nxh2 {[%clk 0:00:10]} 31. Kxh2 {[%clk 0:00:19]}  Ng4+ {[%clk 0:00:10]} 32. Kg1 {[%clk 0:00:19]}  Bf6 {[%clk 0:00:10]} 33. Bc3 {[%clk 0:00:18]}  Bg5 {[%clk 0:00:05]} 34. Nxd5 {[%clk 0:00:15]}  Qh5 {[%clk 0:00:05]} 35. Qc2 {[%clk 0:00:14]}  f4 {[%clk 0:00:05]} 36. Qg2 {[%clk 0:00:13]}  f3 {[%clk 0:00:05]} 37. Qh3 {[%clk 0:00:13]}  f2+ {[%clk 0:00:05]} 38. Kg2 {[%clk 0:00:13]}  Qxh3+ {[%clk 0:00:05]} 39. Kxh3 {[%clk 0:00:13]}  fxe1=Q {[%clk 0:00:06]} 40. Bxe1 {[%clk 0:00:12]}  Ne3+ {[%clk 0:00:07]} 41. Kh2 {[%clk 0:00:11]}  Nxd5 {[%clk 0:00:08]} 42. Rc6 {[%clk 0:00:10]}  Bg4 {[%clk 0:00:07]} 43. Nxe4 {[%clk 0:00:09]}  Ne3 {[%clk 0:00:07]} 44. Bd3 {[%clk 0:00:09]}  Bf5 {[%clk 0:00:06]} 45. Nxg5+ {[%clk 0:00:08]}  Rxg5 {[%clk 0:00:07]} 46. Bd2 {[%clk 0:00:08]}  Rh5+ {[%clk 0:00:06]} 47. Kg1 {[%clk 0:00:07]}  Bxd3 {[%clk 0:00:07]} 48. Bxe3 {[%clk 0:00:07]}  Rh1+ {[%clk 0:00:07]} 49. Kxh1 {[%clk 0:00:07]}  Be4+ {[%clk 0:00:08]} 50. Kg1 {[%clk 0:00:07]}  Bxc6 {[%clk 0:00:09]} 51. d5 {[%clk 0:00:07]}  Bxd5 {[%clk 0:00:09]} 52. a7 {[%clk 0:00:07]}  Kg6 {[%clk 0:00:09]} 53. Kf2 {[%clk 0:00:07]}  Kf5 {[%clk 0:00:10]} 54. Bb6 {[%clk 0:00:08]}  Ke4 {[%clk 0:00:10]} 55. g4 {[%clk 0:00:07]}  Rg8 {[%clk 0:00:10]} 56. Kg3 {[%clk 0:00:06]}  Be6 {[%clk 0:00:08]} 57. Bc7 {[%clk 0:00:05]}  Rxg4+ {[%clk 0:00:07]} 58. Kf2 {[%clk 0:00:05]}  Bd5 {[%clk 0:00:07]} 59. Bb8 {[%clk 0:00:05]}  Kd3 {[%clk 0:00:06]} 60. Kf1 {[%clk 0:00:04]}  Rg2 {[%clk 0:00:06]} 61. Bc7 {[%clk 0:00:03]}  Ra2 {[%clk 0:00:06]} 62. Bb8 {[%clk 0:00:03]}  Ke3 {[%clk 0:00:06]} 63. Kg1 {[%clk 0:00:03]}  Kf3 {[%clk 0:00:06]} 0-1


[Site "https://www.chess.com"]

[Event "Titled Tuesday Blitz September 28 2021"]
[White "Drozdowski, Kacper"]
[Black "Savchenko, Boris"]
[WhiteFideId "1136720"]
[BlackFideId "4147332"]
[WhiteElo "2880"]
[BlackElo "2818"]
[Result "0-1"]
[Round "07"]
[TimeControl "180+1"]
[Date "2021.09.28"]
[WhiteClock "0:00:57"]
[BlackClock "0:02:15"]

1. e4 {[%clk 0:03:00]}  c5 {[%clk 0:02:59]} 2. Nf3 {[%clk 0:03:01]}  d6 {[%clk 0:03:00]} 3. d4 {[%clk 0:03:02]}  cxd4 {[%clk 0:03:00]} 4. Nxd4 {[%clk 0:03:02]}  Nf6 {[%clk 0:03:01]} 5. f3 {[%clk 0:03:02]}  g6 {[%clk 0:03:00]} 6. c4 {[%clk 0:03:02]}  Nc6 {[%clk 0:03:01]} 7. Nc3 {[%clk 0:03:03]}  Nxd4 {[%clk 0:03:00]} 8. Qxd4 {[%clk 0:03:02]}  Bg7 {[%clk 0:03:01]} 9. Be3 {[%clk 0:03:02]}  O-O {[%clk 0:03:01]} 10. Qd2 {[%clk 0:03:02]}  Be6 {[%clk 0:03:01]} 11. Rc1 {[%clk 0:03:01]}  Nd7 {[%clk 0:02:58]} 12. b3 {[%clk 0:02:58]}  Nc5 {[%clk 0:02:52]} 13. Be2 {[%clk 0:02:56]}  a5 {[%clk 0:02:50]} 14. O-O {[%clk 0:02:53]}  Qb6 {[%clk 0:02:50]} 15. Rc2 {[%clk 0:02:47]}  Rfc8 {[%clk 0:02:46]} 16. Rb1 {[%clk 0:02:43]}  Qb4 {[%clk 0:02:43]} 17. Nb5 {[%clk 0:02:31]}  Qxd2 {[%clk 0:02:40]} 18. Rxd2 {[%clk 0:02:32]}  a4 {[%clk 0:02:36]} 19. b4 {[%clk 0:02:20]}  Nd7 {[%clk 0:02:36]} 20. Rc1 {[%clk 0:02:00]}  a3 {[%clk 0:02:30]} 21. Nd4 {[%clk 0:01:55]}  Ra4 {[%clk 0:02:28]} 22. Nxe6 {[%clk 0:01:41]}  fxe6 {[%clk 0:02:28]} 23. c5 {[%clk 0:01:41]}  Rxb4 {[%clk 0:02:27]} 24. Bc4 {[%clk 0:01:38]}  Kf7 {[%clk 0:02:24]} 25. Bb3 {[%clk 0:01:01]}  Nxc5 {[%clk 0:02:18]} 26. Bxc5 {[%clk 0:01:01]}  Rxc5 {[%clk 0:02:15]} 27. Rxc5 {[%clk 0:00:59]}  dxc5 {[%clk 0:02:16]} 28. Rc2 {[%clk 0:00:57]}  b5 {[%clk 0:02:15]} 0-1


[Site "https://www.chess.com"]

[Event "Titled Tuesday Blitz September 28 2021"]
[White "Eynullayev, Atilla"]
[Black "Cunha, Lucas Aguiar"]
[WhiteFideId "13413570"]
[BlackFideId "2125404"]
[WhiteElo "1997"]
[BlackElo "2361"]
[Result "0-1"]
[Round "07"]
[TimeControl "180+1"]
[Date "2021.09.28"]
[WhiteClock "0:01:28"]
[BlackClock "0:03:03"]

1. Nf3 {[%clk 0:03:00]}  d5 {[%clk 0:02:59]} 2. g3 {[%clk 0:03:01]}  c5 {[%clk 0:02:59]} 3. Bg2 {[%clk 0:03:00]}  Nc6 {[%clk 0:03:00]} 4. d4 {[%clk 0:03:00]}  Nf6 {[%clk 0:03:00]} 5. O-O {[%clk 0:02:57]}  e6 {[%clk 0:03:00]} 6. c4 {[%clk 0:02:56]}  dxc4 {[%clk 0:03:00]} 7. Qa4 {[%clk 0:02:57]}  cxd4 {[%clk 0:03:00]} 8. Nxd4 {[%clk 0:02:54]}  Qxd4 {[%clk 0:03:01]} 9. Bxc6+ {[%clk 0:02:54]}  bxc6 {[%clk 0:03:02]} 10. Qxc6+ {[%clk 0:02:54]}  Qd7 {[%clk 0:03:03]} 11. Qxa8 {[%clk 0:02:53]}  Bc5 {[%clk 0:03:03]} 12. Nc3 {[%clk 0:02:50]}  O-O {[%clk 0:03:03]} 13. Rd1 {[%clk 0:02:45]}  Qc7 {[%clk 0:03:04]} 14. Bf4 {[%clk 0:02:43]}  e5 {[%clk 0:03:03]} 15. Nb5 {[%clk 0:01:28]}  Qb6 {[%clk 0:03:03]} 0-1


[Site "https://www.chess.com"]

[Event "Titled Tuesday Blitz September 28 2021"]
[White "Gaehwiler, Gabriel"]
[Black "Garv Gaur"]
[WhiteFideId "1314530"]
[BlackFideId "45030839"]
[WhiteElo "2320"]
[BlackElo "1950"]
[Result "1-0"]
[Round "07"]
[TimeControl "180+1"]
[Date "2021.09.28"]
[WhiteClock "0:02:42"]
[BlackClock "0:02:43"]

1. Nf3 {[%clk 0:03:00]}  d5 {[%clk 0:03:00]} 2. c4 {[%clk 0:03:01]}  e6 {[%clk 0:02:59]} 3. e3 {[%clk 0:03:01]}  Nf6 {[%clk 0:03:00]} 4. Nc3 {[%clk 0:03:01]}  Be7 {[%clk 0:03:00]} 5. b3 {[%clk 0:03:00]}  O-O {[%clk 0:03:00]} 6. Bb2 {[%clk 0:03:01]}  b6 {[%clk 0:03:01]} 7. Be2 {[%clk 0:03:01]}  Bb7 {[%clk 0:03:01]} 8. d4 {[%clk 0:03:01]}  Nbd7 {[%clk 0:03:01]} 9. cxd5 {[%clk 0:03:01]}  exd5 {[%clk 0:03:01]} 10. O-O {[%clk 0:03:01]}  c5 {[%clk 0:03:02]} 11. Ne5 {[%clk 0:03:00]}  Nxe5 {[%clk 0:03:00]} 12. dxe5 {[%clk 0:02:59]}  Ne4 {[%clk 0:03:01]} 13. Nxe4 {[%clk 0:02:59]}  dxe4 {[%clk 0:03:02]} 14. Qc2 {[%clk 0:03:00]}  Qc7 {[%clk 0:03:00]} 15. Bc4 {[%clk 0:02:56]}  Rad8 {[%clk 0:02:56]} 16. Rad1 {[%clk 0:02:55]}  a6 {[%clk 0:02:55]} 17. e6 {[%clk 0:02:54]}  f5 {[%clk 0:02:50]} 18. Rd7 {[%clk 0:02:52]}  Rxd7 {[%clk 0:02:45]} 19. exd7+ {[%clk 0:02:53]}  Kh8 {[%clk 0:02:45]} 20. Rd1 {[%clk 0:02:51]}  Rd8 {[%clk 0:02:44]} 21. Qc3 {[%clk 0:02:42]}  Bf6 {[%clk 0:02:43]} 22. Qxf6 {[%clk 0:02:42]} 1-0


[Site "https://www.chess.com"]

[Event "Titled Tuesday Blitz September 28 2021"]
[White "Gasanov, Zaur"]
[Black "Dzhaparov, Medet"]
[WhiteFideId "34125970"]
[BlackFideId "13803689"]
[WhiteElo "2099"]
[BlackElo "1702"]
[Result "1-0"]
[Round "07"]
[TimeControl "180+1"]
[Date "2021.09.28"]
[WhiteClock "0:00:55"]
[BlackClock "0:00:09"]

1. d4 {[%clk 0:03:00]}  Nf6 {[%clk 0:02:57]} 2. Nf3 {[%clk 0:03:00]}  g6 {[%clk 0:02:57]} 3. Bf4 {[%clk 0:03:00]}  Bg7 {[%clk 0:02:58]} 4. e3 {[%clk 0:03:01]}  O-O {[%clk 0:02:56]} 5. h3 {[%clk 0:03:01]}  d6 {[%clk 0:02:57]} 6. Be2 {[%clk 0:03:02]}  Nbd7 {[%clk 0:02:57]} 7. O-O {[%clk 0:03:02]}  Qe8 {[%clk 0:02:58]} 8. Bh2 {[%clk 0:03:02]}  e5 {[%clk 0:02:58]} 9. c4 {[%clk 0:03:03]}  e4 {[%clk 0:02:45]} 10. Nfd2 {[%clk 0:03:02]}  h5 {[%clk 0:02:40]} 11. Nc3 {[%clk 0:03:01]}  Qe7 {[%clk 0:02:40]} 12. Qc2 {[%clk 0:02:56]}  Re8 {[%clk 0:02:37]} 13. Nb5 {[%clk 0:02:50]}  Nf8 {[%clk 0:02:36]} 14. c5 {[%clk 0:02:50]}  dxc5 {[%clk 0:01:42]} 15. Nxc7 {[%clk 0:02:47]}  cxd4 {[%clk 0:01:41]} 16. Nxe8 {[%clk 0:02:39]}  Qxe8 {[%clk 0:01:37]} 17. exd4 {[%clk 0:02:39]}  Bf5 {[%clk 0:01:33]} 18. Qb3 {[%clk 0:02:35]}  Ne6 {[%clk 0:01:15]} 19. Be5 {[%clk 0:02:29]}  Rd8 {[%clk 0:01:14]} 20. Nc4 {[%clk 0:02:23]}  Nxd4 {[%clk 0:01:11]} 21. Bxd4 {[%clk 0:02:23]}  Rxd4 {[%clk 0:01:12]} 22. Ne3 {[%clk 0:02:23]}  Be6 {[%clk 0:01:09]} 23. Qxb7 {[%clk 0:02:21]}  Nd5 {[%clk 0:01:07]} 24. Rad1 {[%clk 0:02:13]}  Nf4 {[%clk 0:01:01]} 25. Bb5 {[%clk 0:02:02]}  Qd8 {[%clk 0:00:56]} 26. Qxa7 {[%clk 0:01:47]}  Rxd1 {[%clk 0:00:41]} 27. Rxd1 {[%clk 0:01:48]}  Qg5 {[%clk 0:00:41]} 28. Qb6 {[%clk 0:01:17]}  Bxh3 {[%clk 0:00:20]} 29. Qd8+ {[%clk 0:01:15]}  Qxd8 {[%clk 0:00:13]} 30. Rxd8+ {[%clk 0:01:16]}  Kh7 {[%clk 0:00:14]} 31. gxh3 {[%clk 0:01:16]}  Bxb2 {[%clk 0:00:13]} 32. Bc4 {[%clk 0:01:12]}  Nxh3+ {[%clk 0:00:13]} 33. Kf1 {[%clk 0:01:12]}  f5 {[%clk 0:00:12]} 34. a4 {[%clk 0:01:05]}  f4 {[%clk 0:00:11]} 35. Nd5 {[%clk 0:01:05]}  g5 {[%clk 0:00:10]} 36. a5 {[%clk 0:01:04]}  g4 {[%clk 0:00:08]} 37. a6 {[%clk 0:01:00]}  e3 {[%clk 0:00:09]} 38. a7 {[%clk 0:00:55]} 1-0


[Site "https://www.chess.com"]

[Event "Titled Tuesday Blitz September 28 2021"]
[White "Gracia Alvarez, Gerardo Antonio"]
[Black "Madaminov, Mukhiddin"]
[WhiteFideId "5109124"]
[BlackFideId "14210703"]
[WhiteElo "2148"]
[BlackElo "1855"]
[Result "1-0"]
[Round "07"]
[TimeControl "180+1"]
[Date "2021.09.28"]
[WhiteClock "0:00:07"]
[BlackClock "0:00:02"]

1. e4 {[%clk 0:03:00]}  e5 {[%clk 0:02:59]} 2. Nf3 {[%clk 0:03:00]}  Nc6 {[%clk 0:03:00]} 3. Nc3 {[%clk 0:03:00]}  Nf6 {[%clk 0:02:59]} 4. d4 {[%clk 0:03:01]}  exd4 {[%clk 0:03:00]} 5. Nxd4 {[%clk 0:03:01]}  Bb4 {[%clk 0:03:00]} 6. Nxc6 {[%clk 0:03:01]}  bxc6 {[%clk 0:03:01]} 7. Bd3 {[%clk 0:03:01]}  d5 {[%clk 0:03:02]} 8. Bd2 {[%clk 0:03:01]}  O-O {[%clk 0:03:01]} 9. O-O {[%clk 0:03:01]}  Re8 {[%clk 0:03:00]} 10. Re1 {[%clk 0:02:50]}  dxe4 {[%clk 0:02:30]} 11. Nxe4 {[%clk 0:02:47]}  Rxe4 {[%clk 0:02:30]} 12. Rxe4 {[%clk 0:02:42]}  Bxd2 {[%clk 0:02:29]} 13. Re1 {[%clk 0:02:02]}  Bg5 {[%clk 0:01:39]} 14. Bxh7+ {[%clk 0:01:36]}  Nxh7 {[%clk 0:01:35]} 15. Qxd8+ {[%clk 0:01:36]}  Bxd8 {[%clk 0:01:35]} 16. Re8+ {[%clk 0:01:36]}  Nf8 {[%clk 0:01:36]} 17. Rxd8 {[%clk 0:01:37]}  Bb7 {[%clk 0:01:37]} 18. Rad1 {[%clk 0:01:32]}  c5 {[%clk 0:01:15]} 19. Rxa8 {[%clk 0:01:28]}  Bxa8 {[%clk 0:01:16]} 20. Rd8 {[%clk 0:01:28]}  Be4 {[%clk 0:01:14]} 21. c3 {[%clk 0:01:24]}  a5 {[%clk 0:00:52]} 22. f3 {[%clk 0:01:24]}  Bb1 {[%clk 0:00:48]} 23. a3 {[%clk 0:01:23]}  a4 {[%clk 0:00:46]} 24. Rc8 {[%clk 0:01:23]}  Bc2 {[%clk 0:00:43]} 25. Kf2 {[%clk 0:01:16]}  g6 {[%clk 0:00:38]} 26. Ke3 {[%clk 0:01:09]}  Kg7 {[%clk 0:00:38]} 27. Rxc7 {[%clk 0:01:08]}  Ne6 {[%clk 0:00:38]} 28. Ra7 {[%clk 0:01:03]}  Kf6 {[%clk 0:00:36]} 29. g3 {[%clk 0:00:58]}  c4 {[%clk 0:00:29]} 30. Ra5 {[%clk 0:00:51]}  g5 {[%clk 0:00:24]} 31. h4 {[%clk 0:00:47]}  gxh4 {[%clk 0:00:24]} 32. gxh4 {[%clk 0:00:46]}  Bb3 {[%clk 0:00:23]} 33. h5 {[%clk 0:00:34]}  Kg7 {[%clk 0:00:18]} 34. f4 {[%clk 0:00:29]}  Bc2 {[%clk 0:00:08]} 35. f5 {[%clk 0:00:25]}  Ng5 {[%clk 0:00:07]} 36. Kf4 {[%clk 0:00:23]}  f6 {[%clk 0:00:06]} 37. Ra6 {[%clk 0:00:21]}  Ne4 {[%clk 0:00:04]} 38. Rc6 {[%clk 0:00:20]}  Bd3 {[%clk 0:00:05]} 39. Ra6 {[%clk 0:00:19]}  Nc5 {[%clk 0:00:02]} 40. Ra5 {[%clk 0:00:16]}  Nb3 {[%clk 0:00:02]} 41. Rxa4 {[%clk 0:00:13]}  Kh6 {[%clk 0:00:02]} 42. Ra6 {[%clk 0:00:13]}  Kg7 {[%clk 0:00:02]} 43. h6+ {[%clk 0:00:10]}  Kxh6 {[%clk 0:00:01]} 44. Rxf6+ {[%clk 0:00:10]}  Kg7 {[%clk 0:00:02]} 45. Rb6 {[%clk 0:00:09]}  Kf7 {[%clk 0:00:03]} 46. a4 {[%clk 0:00:08]}  Nc5 {[%clk 0:00:02]} 47. a5 {[%clk 0:00:07]} 1-0


[Site "https://www.chess.com"]

[Event "Titled Tuesday Blitz September 28 2021"]
[White "Gritsenko, Nikolai"]
[Black "Sadykov, Ramil"]
[WhiteFideId "14112493"]
[BlackFideId "24113590"]
[WhiteElo "2389"]
[BlackElo "2300"]
[Result "1/2-1/2"]
[Round "07"]
[TimeControl "180+1"]
[Date "2021.09.28"]
[WhiteClock "0:00:06"]
[BlackClock "0:00:06"]

1. d4 {[%clk 0:03:00]}  d5 {[%clk 0:02:59]} 2. c4 {[%clk 0:02:59]}  e6 {[%clk 0:03:00]} 3. Nc3 {[%clk 0:02:59]}  Be7 {[%clk 0:02:59]} 4. Nf3 {[%clk 0:02:59]}  Nf6 {[%clk 0:02:59]} 5. Bg5 {[%clk 0:02:59]}  O-O {[%clk 0:02:54]} 6. Qc2 {[%clk 0:02:58]}  c5 {[%clk 0:02:32]} 7. cxd5 {[%clk 0:02:45]}  cxd4 {[%clk 0:02:26]} 8. Nxd4 {[%clk 0:02:43]}  Nxd5 {[%clk 0:02:24]} 9. Bxe7 {[%clk 0:02:42]}  Nxe7 {[%clk 0:02:11]} 10. Rd1 {[%clk 0:02:41]}  Qa5 {[%clk 0:01:59]} 11. e3 {[%clk 0:02:38]}  Nbc6 {[%clk 0:01:55]} 12. Be2 {[%clk 0:02:33]}  Nxd4 {[%clk 0:01:53]} 13. Rxd4 {[%clk 0:02:33]}  e5 {[%clk 0:01:52]} 14. Ra4 {[%clk 0:02:16]}  Qb6 {[%clk 0:01:47]} 15. O-O {[%clk 0:02:14]}  Bf5 {[%clk 0:01:41]} 16. Qc1 {[%clk 0:01:54]}  Rac8 {[%clk 0:01:38]} 17. Ra3 {[%clk 0:01:52]}  Be6 {[%clk 0:01:33]} 18. Rd1 {[%clk 0:01:46]}  a6 {[%clk 0:01:19]} 19. h3 {[%clk 0:01:43]}  Rfd8 {[%clk 0:01:18]} 20. Rxd8+ {[%clk 0:01:38]}  Qxd8 {[%clk 0:01:18]} 21. Qd1 {[%clk 0:01:30]}  Qxd1+ {[%clk 0:01:14]} 22. Bxd1 {[%clk 0:01:30]}  Nd5 {[%clk 0:01:11]} 23. Kf1 {[%clk 0:01:25]}  Nxc3 {[%clk 0:01:06]} 24. bxc3 {[%clk 0:01:24]}  Kf8 {[%clk 0:01:04]} 25. Ke1 {[%clk 0:01:23]}  Ke7 {[%clk 0:01:04]} 26. Kd2 {[%clk 0:01:23]}  Kd6 {[%clk 0:01:00]} 27. Bb3 {[%clk 0:01:21]}  Bc4 {[%clk 0:00:50]} 28. Ra4 {[%clk 0:01:12]}  Bd5 {[%clk 0:00:32]} 29. Rh4 {[%clk 0:01:09]}  h6 {[%clk 0:00:31]} 30. f4 {[%clk 0:01:03]}  Bxg2 {[%clk 0:00:19]} 31. Rg4 {[%clk 0:01:00]}  Bd5 {[%clk 0:00:18]} 32. Rxg7 {[%clk 0:00:58]}  exf4 {[%clk 0:00:16]} 33. exf4 {[%clk 0:00:55]}  Rc7 {[%clk 0:00:05]} 34. Rh7 {[%clk 0:00:50]}  Bxb3 {[%clk 0:00:02]} 35. axb3 {[%clk 0:00:44]}  Ke6 {[%clk 0:00:03]} 36. Rxh6+ {[%clk 0:00:43]}  Kf5 {[%clk 0:00:03]} 37. Rh4 {[%clk 0:00:34]}  Ke4 {[%clk 0:00:04]} 38. c4 {[%clk 0:00:32]}  b5 {[%clk 0:00:03]} 39. Kc3 {[%clk 0:00:30]}  bxc4 {[%clk 0:00:03]} 40. bxc4 {[%clk 0:00:30]}  f5 {[%clk 0:00:04]} 41. Kb4 {[%clk 0:00:27]}  a5+ {[%clk 0:00:04]} 42. Kb5 {[%clk 0:00:25]}  a4 {[%clk 0:00:05]} 43. Rh8 {[%clk 0:00:19]}  Kxf4 {[%clk 0:00:05]} 44. Ra8 {[%clk 0:00:17]}  Kg3 {[%clk 0:00:05]} 45. Rxa4 {[%clk 0:00:17]}  f4 {[%clk 0:00:05]} 46. Kb6 {[%clk 0:00:15]}  Rc8 {[%clk 0:00:05]} 47. c5 {[%clk 0:00:14]}  f3 {[%clk 0:00:05]} 48. Ra3 {[%clk 0:00:14]}  Rf8 {[%clk 0:00:04]} 49. c6 {[%clk 0:00:12]}  Kxh3 {[%clk 0:00:04]} 50. c7 {[%clk 0:00:11]}  Kg2 {[%clk 0:00:04]} 51. Rxf3 {[%clk 0:00:07]}  Kxf3 {[%clk 0:00:05]} 52. Kb7 {[%clk 0:00:06]}  Rf7 {[%clk 0:00:05]} 53. Kb8 {[%clk 0:00:06]}  Rxc7 {[%clk 0:00:06]} 54. Kxc7 {[%clk 0:00:06]} 1/2-1/2


[Site "https://www.chess.com"]